[Event "*** Titled Tuesday 3|2 Blitz"]
[Site "Chess.com"]
[Date "2016.09.06"]
[Round "2"]
[White "hypert"]
[Black "Usurpov"]
[Result "1-0"]
[WhiteElo "2343"]
[BlackElo "2320"]
[TimeControl "180+2"]
[EndTime "11:20:06 PDT"]
[Termination "hypert won by resignation"]

1. d4 {[%clk 0:03:01.9]} 1... Nf6 {[%clk 0:03:00.1]} 2. g3 {[%clk 0:03:03]} 2...
g6 {[%clk 0:02:59.6]} 3. Bg2 {[%clk 0:03:04]} 3... d5 {[%clk 0:03:00.7]} 4. Nd2
{[%clk 0:02:55.4]} 4... Bg7 {[%clk 0:03:00.5]} 5. c4 {[%clk 0:02:52.6]} 5...
dxc4 {[%clk 0:02:50.5]} 6. Nxc4 {[%clk 0:02:52]} 6... O-O {[%clk 0:02:50.2]} 7.
Nf3 {[%clk 0:02:46.5]} 7... Nc6 {[%clk 0:02:49.5]} 8. O-O {[%clk 0:02:43.3]}
8... Be6 {[%clk 0:02:49.9]} 9. Nce5 {[%clk 0:02:42.9]} 9... Bd5 {[%clk
0:02:48.1]} 10. b3 {[%clk 0:02:38.6]} 10... a5 {[%clk 0:02:48.3]} 11. Bb2 {[%clk
0:02:38.4]} 11... a4 {[%clk 0:02:46.8]} 12. Nd3 {[%clk 0:02:32.5]} 12... Ne4
{[%clk 0:02:30]} 13. Nfe5 {[%clk 0:02:28.8]} 13... a3 {[%clk 0:02:23.4]} 14. Bc1
{[%clk 0:02:16.5]} 14... Nxd4 {[%clk 0:02:17.1]} 15. Re1 {[%clk 0:01:38.5]}
15... Nc3 {[%clk 0:01:11.7]} 16. Qd2 {[%clk 0:01:37.8]} 16... Bxg2 {[%clk
0:01:11.9]} 17. Kxg2 {[%clk 0:01:25.2]} 17... Qd5+ {[%clk 0:01:11.9]} 18. f3
{[%clk 0:01:07.1]} 18... Bxe5 {[%clk 0:00:40.5]} 19. Nxe5 {[%clk 0:01:03.3]}
19... Ne6 {[%clk 0:00:30.4]} 20. Qxc3 {[%clk 0:00:58.6]} 1-0

[Event "*** Titled Tuesday 3|2 Blitz"]
[Site "Chess.com"]
[Date "2016.09.06"]
[Round "2"]
[White "biostatistician"]
[Black "ZEN-22"]
[Result "1-0"]
[WhiteElo "2382"]
[BlackElo "2267"]
[TimeControl "180+2"]
[EndTime "11:20:12 PDT"]
[Termination "biostatistician won by resignation"]

1. d4 {[%clk 0:03:01.9]} 1... e6 {[%clk 0:02:59.6]} 2. Nf3 {[%clk 0:03:03.1]}
2... c5 {[%clk 0:03:01.5]} 3. e3 {[%clk 0:03:01.7]} 3... d5 {[%clk 0:03:02.1]}
4. c4 {[%clk 0:03:01.1]} 4... cxd4 {[%clk 0:03:02.2]} 5. exd4 {[%clk 0:03:01.2]}
5... Nf6 {[%clk 0:03:03.5]} 6. Nc3 {[%clk 0:03:02.6]} 6... a6 {[%clk 0:03:03.4]}
7. Bg5 {[%clk 0:03:02.5]} 7... dxc4 {[%clk 0:03:03.3]} 8. Bxc4 {[%clk
0:03:04.3]} 8... h6 {[%clk 0:03:03.8]} 9. Bxf6 {[%clk 0:03:03.2]} 9... Qxf6
{[%clk 0:03:04.3]} 10. O-O {[%clk 0:03:04.1]} 10... Bb4 {[%clk 0:03:04.2]} 11.
Qa4+ {[%clk 0:02:36.2]} 11... Nc6 {[%clk 0:03:04.8]} 12. d5 {[%clk 0:02:24.8]}
12... exd5 {[%clk 0:03:05.3]} 13. Nxd5 {[%clk 0:02:25.2]} 13... Qd6 {[%clk
0:03:05.4]} 14. Rad1 {[%clk 0:02:12.4]} 14... O-O {[%clk 0:02:38.7]} 15. Nb6
{[%clk 0:02:05.8]} 15... Qc5 {[%clk 0:02:39.7]} 16. Nxa8 {[%clk 0:02:01.7]}
16... Qxc4 {[%clk 0:02:40.9]} 17. Nb6 {[%clk 0:01:56.8]} 17... Qe6 {[%clk
0:02:36.2]} 18. a3 {[%clk 0:01:50.4]} 18... Bc5 {[%clk 0:02:36.2]} 19. Nxc8
{[%clk 0:01:49.8]} 19... Rxc8 {[%clk 0:02:37.7]} 20. Rfe1 {[%clk 0:01:49.2]}
20... Qf6 {[%clk 0:02:38.7]} 21. b4 {[%clk 0:01:49.3]} 21... Bb6 {[%clk
0:02:33.4]} 22. Rc1 {[%clk 0:01:44.9]} 22... Rd8 {[%clk 0:02:33.6]} 23. Qc2
{[%clk 0:01:43]} 23... Nd4 {[%clk 0:02:32.5]} 24. Nxd4 {[%clk 0:01:43.3]} 24...
Bxd4 {[%clk 0:02:34.1]} 25. Rf1 {[%clk 0:01:41.3]} 25... g6 {[%clk 0:02:34.4]}
26. Rcd1 {[%clk 0:01:40.8]} 26... Rd6 {[%clk 0:02:34.8]} 27. Rd2 {[%clk
0:01:40.5]} 27... Rc6 {[%clk 0:02:33.6]} 28. Qe4 {[%clk 0:01:39.5]} 28... Bb6
{[%clk 0:02:33.5]} 29. g3 {[%clk 0:01:28.1]} 29... Kg7 {[%clk 0:02:34.5]} 30.
Kg2 {[%clk 0:01:28.9]} 30... h5 {[%clk 0:02:35.2]} 31. h4 {[%clk 0:01:29.2]}
31... a5 {[%clk 0:02:33.5]} 32. Re1 {[%clk 0:01:20.9]} 32... axb4 {[%clk
0:02:32.9]} 33. axb4 {[%clk 0:01:22.8]} 33... Re6 {[%clk 0:02:28.7]} 34. Qb1
{[%clk 0:01:23.4]} 34... Rxe1 {[%clk 0:02:24.1]} 35. Qxe1 {[%clk 0:01:25.3]}
35... Bd4 {[%clk 0:02:23.9]} 36. Re2 {[%clk 0:01:19.8]} 36... Bc3 {[%clk
0:02:24.5]} 37. Qb1 {[%clk 0:01:18.3]} 37... Qc6+ {[%clk 0:02:21.9]} 38. Kg1
{[%clk 0:01:17]} 38... Bd4 {[%clk 0:02:14.6]} 39. Qe4 {[%clk 0:01:11.5]} 39...
Qb6 {[%clk 0:02:15.3]} 40. b5 {[%clk 0:01:09.5]} 40... Qxb5 {[%clk 0:02:11.6]}
41. Qxd4+ {[%clk 0:01:09.9]} 41... Kh7 {[%clk 0:02:12.5]} 42. Re7 {[%clk
0:01:04.8]} 1-0

[Event "*** Titled Tuesday 3|2 Blitz"]
[Site "Chess.com"]
[Date "2016.09.06"]
[Round "2"]
[White "Makalexa"]
[Black "Drags95"]
[Result "0-1"]
[WhiteElo "2176"]
[BlackElo "2376"]
[TimeControl "180+2"]
[EndTime "11:20:32 PDT"]
[Termination "Drags95 won by resignation"]

1. e4 {[%clk 0:03:00.4]} 1... e5 {[%clk 0:02:58.6]} 2. Nf3 {[%clk 0:03:01.7]}
2... Nc6 {[%clk 0:02:59.3]} 3. Bb5 {[%clk 0:03:02.9]} 3... a6 {[%clk 0:02:59.1]}
4. Ba4 {[%clk 0:03:04.3]} 4... Nf6 {[%clk 0:03:00.1]} 5. O-O {[%clk 0:03:05.2]}
5... Be7 {[%clk 0:03:01.3]} 6. Re1 {[%clk 0:03:06]} 6... b5 {[%clk 0:03:02.5]}
7. Bb3 {[%clk 0:03:06.9]} 7... d6 {[%clk 0:03:04.2]} 8. a4 {[%clk 0:03:06.6]}
8... b4 {[%clk 0:03:03.7]} 9. d3 {[%clk 0:03:02.4]} 9... O-O {[%clk 0:03:04.7]}
10. Nbd2 {[%clk 0:03:02.6]} 10... Na5 {[%clk 0:03:03.5]} 11. Ba2 {[%clk
0:03:02.8]} 11... c5 {[%clk 0:03:05.1]} 12. Nc4 {[%clk 0:03:02.9]} 12... Nc6
{[%clk 0:02:55.6]} 13. Ne3 {[%clk 0:02:58.8]} 13... Be6 {[%clk 0:02:53.6]} 14.
Nf5 {[%clk 0:02:50.6]} 14... Re8 {[%clk 0:02:45.4]} 15. Ng5 {[%clk 0:02:28]}
15... Bxa2 {[%clk 0:02:40.7]} 16. Rxa2 {[%clk 0:02:28.1]} 16... Bf8 {[%clk
0:02:42.3]} 17. f4 {[%clk 0:02:25.2]} 17... g6 {[%clk 0:02:40]} 18. fxe5 {[%clk
0:02:15.9]} 18... Nxe5 {[%clk 0:02:34.3]} 19. Ng3 {[%clk 0:01:41.6]} 19... d5
{[%clk 0:02:28.9]} 20. exd5 {[%clk 0:01:36.9]} 20... Qxd5 {[%clk 0:02:28.7]} 21.
Ra1 {[%clk 0:01:20.9]} 21... Bg7 {[%clk 0:02:29.9]} 22. h3 {[%clk 0:00:54.4]}
22... Re7 {[%clk 0:02:23.4]} 23. Kh2 {[%clk 0:00:50.6]} 23... Rae8 {[%clk
0:02:24.7]} 24. Bd2 {[%clk 0:00:46.9]} 24... h6 {[%clk 0:02:18.7]} 25. N5e4
{[%clk 0:00:47]} 25... Nxe4 {[%clk 0:02:19.9]} 26. dxe4 {[%clk 0:00:36.7]} 26...
Qc6 {[%clk 0:02:18.8]} 27. Bf4 {[%clk 0:00:36]} 27... Nc4 {[%clk 0:02:19.2]} 28.
Qg4 {[%clk 0:00:30.7]} 28... Nxb2 {[%clk 0:02:17.4]} 29. e5 {[%clk 0:00:28.8]}
29... Nc4 {[%clk 0:02:15.6]} 30. Rad1 {[%clk 0:00:28]} 30... Nxe5 {[%clk
0:02:15.8]} 31. Bxe5 {[%clk 0:00:21.2]} 31... Rxe5 {[%clk 0:02:17.7]} 32. Rf1
{[%clk 0:00:16.8]} 32... Qe6 {[%clk 0:02:08.4]} 33. Qf3 {[%clk 0:00:15.6]} 33...
Re3 {[%clk 0:02:08.7]} 34. Qf2 {[%clk 0:00:16.4]} 34... Rxg3 {[%clk 0:02:06.2]}
35. Kxg3 {[%clk 0:00:16.6]} 35... Be5+ {[%clk 0:02:07.8]} 36. Kf3 {[%clk
0:00:17.8]} 36... Qf5+ {[%clk 0:02:08.3]} 37. Ke2 {[%clk 0:00:18.9]} 37... Bd4+
{[%clk 0:02:09.7]} 0-1

[Event "*** Titled Tuesday 3|2 Blitz"]
[Site "Chess.com"]
[Date "2016.09.06"]
[Round "2"]
[White "FairChess_on_YouTube"]
[Black "ChessWarrior7197"]
[Result "1-0"]
[WhiteElo "2706"]
[BlackElo "2476"]
[TimeControl "180+2"]
[EndTime "11:20:57 PDT"]
[Termination "FairChess_on_YouTube won by resignation"]

1. e4 {[%clk 0:03:01.9]} 1... c5 {[%clk 0:02:53]} 2. Nf3 {[%clk 0:03:02.9]} 2...
d6 {[%clk 0:02:54.3]} 3. d4 {[%clk 0:03:03.3]} 3... cxd4 {[%clk 0:02:56]} 4.
Qxd4 {[%clk 0:03:03.8]} 4... Nc6 {[%clk 0:02:56.2]} 5. Bb5 {[%clk 0:03:04.6]}
5... Bd7 {[%clk 0:02:57.6]} 6. Qd3 {[%clk 0:03:03.6]} 6... h6 {[%clk 0:02:53.3]}
7. O-O {[%clk 0:02:58.8]} 7... Nf6 {[%clk 0:02:52.6]} 8. c4 {[%clk 0:02:59.8]}
8... a6 {[%clk 0:02:51.4]} 9. Bxc6 {[%clk 0:03:00.2]} 9... Bxc6 {[%clk
0:02:52.1]} 10. Nc3 {[%clk 0:03:01.1]} 10... e6 {[%clk 0:02:53.2]} 11. Bf4
{[%clk 0:02:54.9]} 11... Be7 {[%clk 0:02:51]} 12. Rad1 {[%clk 0:02:54.9]} 12...
e5 {[%clk 0:02:51.6]} 13. Be3 {[%clk 0:02:52.6]} 13... O-O {[%clk 0:02:51]} 14.
Nd2 {[%clk 0:02:51.7]} 14... Rc8 {[%clk 0:02:49.3]} 15. b3 {[%clk 0:02:46.7]}
15... Qc7 {[%clk 0:02:50]} 16. Rfe1 {[%clk 0:02:44.2]} 16... Qb8 {[%clk
0:02:50.7]} 17. a4 {[%clk 0:02:44.5]} 17... Rfd8 {[%clk 0:02:38.8]} 18. Bb6
{[%clk 0:02:44.1]} 18... Re8 {[%clk 0:02:38.2]} 19. Nf1 {[%clk 0:02:42.5]} 19...
Nd7 {[%clk 0:02:38.4]} 20. Be3 {[%clk 0:02:43.4]} 20... Bf8 {[%clk 0:02:30.9]}
21. Ng3 {[%clk 0:02:41.8]} 21... Re6 {[%clk 0:02:31.6]} 22. Nf5 {[%clk
0:02:41.1]} 22... Kh7 {[%clk 0:02:24.6]} 23. f3 {[%clk 0:02:40]} 23... g6 {[%clk
0:02:24.3]} 24. Ng3 {[%clk 0:02:41.1]} 24... Be7 {[%clk 0:02:19.5]} 25. Qd2
{[%clk 0:02:39.6]} 25... h5 {[%clk 0:02:17.6]} 26. Nf1 {[%clk 0:02:31]} 26...
Bd8 {[%clk 0:02:17.8]} 27. Rb1 {[%clk 0:02:26]} 27... Bb6 {[%clk 0:02:18]} 28.
Kh1 {[%clk 0:02:24.9]} 28... Bxe3 {[%clk 0:02:10.2]} 29. Nxe3 {[%clk 0:02:26.8]}
29... a5 {[%clk 0:02:11.8]} 30. Red1 {[%clk 0:02:21.5]} 30... Nc5 {[%clk
0:02:10.9]} 31. Ned5 {[%clk 0:02:18.6]} 31... b6 {[%clk 0:02:08.1]} 32. Qg5
{[%clk 0:02:17.6]} 32... Kg7 {[%clk 0:01:40.1]} 33. Ne7 {[%clk 0:02:10.7]} 33...
Rc7 {[%clk 0:01:36.8]} 34. Nf5+ {[%clk 0:02:08.2]} 34... Kg8 {[%clk 0:01:33.9]}
35. Nd5 {[%clk 0:02:03]} 35... Bxd5 {[%clk 0:01:13.1]} 36. cxd5 {[%clk
0:02:04.9]} 36... Re8 {[%clk 0:01:10.6]} 37. Nxd6 {[%clk 0:02:05.8]} 37... Rd8
{[%clk 0:01:02.9]} 38. Nf5 {[%clk 0:01:58.5]} 38... Nb7 {[%clk 0:00:45.6]} 39.
Ne7+ {[%clk 0:01:55.5]} 39... Kh7 {[%clk 0:00:35.9]} 40. Nc6 {[%clk 0:01:54.8]}
1-0

[Event "*** Titled Tuesday 3|2 Blitz"]
[Site "Chess.com"]
[Date "2016.09.06"]
[Round "2"]
[White "semiks"]
[Black "igorkovalenko"]
[Result "1/2-1/2"]
[WhiteElo "2505"]
[BlackElo "2597"]
[TimeControl "180+2"]
[EndTime "11:21:10 PDT"]
[Termination "Game drawn by agreement"]

1. d4 {[%clk 0:03:02]} 1... e6 {[%clk 0:03:01.9]} 2. c4 {[%clk 0:03:02.1]} 2...
d5 {[%clk 0:03:02.4]} 3. Nc3 {[%clk 0:03:02]} 3... c6 {[%clk 0:03:03.7]} 4. g3
{[%clk 0:03:00.4]} 4... dxc4 {[%clk 0:03:04.2]} 5. Bg2 {[%clk 0:03:01.4]} 5...
Nf6 {[%clk 0:03:01.8]} 6. Nf3 {[%clk 0:03:02.1]} 6... Nbd7 {[%clk 0:03:00]} 7.
O-O {[%clk 0:02:58.9]} 7... Bb4 {[%clk 0:03:00.5]} 8. Bg5 {[%clk 0:02:55.4]}
8... h6 {[%clk 0:03:01.2]} 9. Bxf6 {[%clk 0:02:55.5]} 9... Nxf6 {[%clk
0:03:02.2]} 10. Ne5 {[%clk 0:02:56]} 10... Nd5 {[%clk 0:02:59.6]} 11. Qc2 {[%clk
0:02:53.2]} 11... Nb6 {[%clk 0:03:00.2]} 12. Rad1 {[%clk 0:02:48.5]} 12... O-O
{[%clk 0:02:57.1]} 13. Ne4 {[%clk 0:02:43.5]} 13... a5 {[%clk 0:02:40]} 14. a3
{[%clk 0:02:43]} 14... Be7 {[%clk 0:02:40.7]} 15. e3 {[%clk 0:02:38.8]} 15... a4
{[%clk 0:02:30.6]} 16. Nxc4 {[%clk 0:02:25.3]} 16... Nxc4 {[%clk 0:02:29.3]} 17.
Qxc4 {[%clk 0:02:27.2]} 17... Qa5 {[%clk 0:02:29.4]} 18. f4 {[%clk 0:02:09.7]}
18... Ra6 {[%clk 0:02:29.9]} 19. Nc5 {[%clk 0:01:59.8]} 19... Ra7 {[%clk
0:02:30.6]} 20. Qc2 {[%clk 0:01:53]} 20... b6 {[%clk 0:02:28.8]} 21. Nd3 {[%clk
0:01:50.6]} 21... Ba6 {[%clk 0:02:25.7]} 22. Rc1 {[%clk 0:01:51.1]} 22... Bxd3
{[%clk 0:02:26]} 23. Qxd3 {[%clk 0:01:51.9]} 23... c5 {[%clk 0:02:27.6]} 24. f5
{[%clk 0:01:27]} 24... exf5 {[%clk 0:02:15.7]} 25. Rxf5 {[%clk 0:01:25.2]} 25...
g6 {[%clk 0:02:13.8]} 26. Rd5 {[%clk 0:01:25.3]} 26... Qa6 {[%clk 0:02:08.3]}
27. Qxa6 {[%clk 0:01:22.6]} 27... Rxa6 {[%clk 0:02:10.2]} 28. Rd7 {[%clk
0:01:24.1]} 28... Bg5 {[%clk 0:02:11.2]} 29. Rc3 {[%clk 0:01:19.2]} 29... cxd4
{[%clk 0:02:09.7]} 30. exd4 {[%clk 0:01:19.6]} 30... Ra5 {[%clk 0:02:07.2]} 31.
h4 {[%clk 0:01:17.6]} 31... Bf6 {[%clk 0:02:01.2]} 32. Rc6 {[%clk 0:01:14.9]}
32... Kg7 {[%clk 0:01:58.1]} 33. Rxb6 {[%clk 0:01:16.2]} 33... Rd8 {[%clk
0:01:56.2]} 34. Rxd8 {[%clk 0:01:09.6]} 34... Bxd8 {[%clk 0:01:58.1]} 35. Rb7
{[%clk 0:01:11.5]} 35... Bf6 {[%clk 0:01:59]} 36. d5 {[%clk 0:01:01]} 36... Be5
{[%clk 0:01:48.9]} 37. Kf2 {[%clk 0:01:01]} 37... Rc5 {[%clk 0:01:49.7]} 38. Be4
{[%clk 0:00:56.1]} 38... Rc4 {[%clk 0:01:50.7]} 39. Kf3 {[%clk 0:00:54.1]} 39...
h5 {[%clk 0:01:50.2]} 40. d6 {[%clk 0:00:53.9]} 40... Bxd6 {[%clk 0:01:41.7]}
41. Rxf7+ {[%clk 0:00:54.9]} 41... Kxf7 {[%clk 0:01:42.7]} 42. Bd5+ {[%clk
0:00:56.3]} 42... Kg7 {[%clk 0:01:43.8]} 43. Bxc4 {[%clk 0:00:58.2]} 43... Be5
{[%clk 0:01:45.4]} 44. b3 {[%clk 0:00:55.8]} 44... axb3 {[%clk 0:01:46.8]} 45.
Bxb3 {[%clk 0:00:57.7]} 45... Bc7 {[%clk 0:01:47.8]} 46. a4 {[%clk 0:00:55.9]}
46... Kh6 {[%clk 0:01:48.7]} 47. Be6 {[%clk 0:00:53.1]} 47... g5 {[%clk
0:01:46.9]} 48. Kg2 {[%clk 0:00:52.3]} 48... gxh4 {[%clk 0:01:47.2]} 49. gxh4
{[%clk 0:00:53.4]} 49... Bd8 {[%clk 0:01:48.1]} 50. Kg3 {[%clk 0:00:54.2]} 50...
Ba5 {[%clk 0:01:46.9]} 1/2-1/2

[Event "*** Titled Tuesday 3|2 Blitz"]
[Site "Chess.com"]
[Date "2016.09.06"]
[Round "2"]
[White "Haridaskesavan"]
[Black "AlexanderL"]
[Result "0-1"]
[WhiteElo "2199"]
[BlackElo "2533"]
[TimeControl "180+2"]
[EndTime "11:21:24 PDT"]
[Termination "AlexanderL won by resignation"]

1. a3 {[%clk 0:03:02]} 1... e5 {[%clk 0:02:42.7]} 2. g3 {[%clk 0:03:03.1]} 2...
d5 {[%clk 0:02:43.4]} 3. Bg2 {[%clk 0:03:04.3]} 3... Nf6 {[%clk 0:02:43.9]} 4.
e3 {[%clk 0:03:05.7]} 4... c5 {[%clk 0:02:44.2]} 5. Ne2 {[%clk 0:03:06.8]} 5...
Nc6 {[%clk 0:02:45.3]} 6. d4 {[%clk 0:03:08]} 6... cxd4 {[%clk 0:02:45.5]} 7.
exd4 {[%clk 0:03:08.9]} 7... e4 {[%clk 0:02:47.4]} 8. O-O {[%clk 0:03:10.1]}
8... Be7 {[%clk 0:02:48.3]} 9. c4 {[%clk 0:03:11.3]} 9... dxc4 {[%clk 0:02:48]}
10. Nbc3 {[%clk 0:03:12.4]} 10... O-O {[%clk 0:02:48.9]} 11. Nxe4 {[%clk
0:03:11.7]} 11... Bf5 {[%clk 0:02:46.1]} 12. Nxf6+ {[%clk 0:03:09.9]} 12... Bxf6
{[%clk 0:02:47.2]} 13. Be3 {[%clk 0:03:09.7]} 13... Bd3 {[%clk 0:02:46.7]} 14.
Re1 {[%clk 0:03:08.1]} 14... Re8 {[%clk 0:01:59.3]} 15. Rc1 {[%clk 0:02:50.8]}
15... Nxd4 {[%clk 0:01:52.4]} 16. Nxd4 {[%clk 0:02:43.7]} 16... Bxd4 {[%clk
0:01:53]} 17. Bxd4 {[%clk 0:02:36.3]} 17... Qxd4 {[%clk 0:01:52.4]} 18. Bxb7
{[%clk 0:02:10.9]} 18... Rxe1+ {[%clk 0:01:49.1]} 19. Qxe1 {[%clk 0:02:10.9]}
19... Rb8 {[%clk 0:01:50.1]} 20. Bf3 {[%clk 0:02:03.9]} 20... g6 {[%clk
0:01:47.3]} 21. Qc3 {[%clk 0:01:57]} 21... Qxc3 {[%clk 0:01:48.4]} 22. bxc3
{[%clk 0:01:57.7]} 22... Rb3 {[%clk 0:01:47.7]} 23. a4 {[%clk 0:01:56.6]} 23...
Ra3 {[%clk 0:01:48.8]} 24. Bc6 {[%clk 0:01:57.3]} 24... Kf8 {[%clk 0:01:50.2]}
25. f4 {[%clk 0:01:54.9]} 25... Ke7 {[%clk 0:01:48.9]} 26. Kf2 {[%clk 0:01:51]}
26... Kd6 {[%clk 0:01:49.9]} 27. Bb5 {[%clk 0:01:50.3]} 27... Ra2+ {[%clk
0:01:49.5]} 28. Ke3 {[%clk 0:01:51.1]} 28... Re2+ {[%clk 0:01:47.9]} 29. Kf3
{[%clk 0:01:49.2]} 29... Rxh2 {[%clk 0:01:48.8]} 30. Re1 {[%clk 0:01:43.5]}
30... Rc2 {[%clk 0:01:49.3]} 31. Ke3 {[%clk 0:01:36.8]} 31... Kc5 {[%clk
0:01:50.4]} 32. f5 {[%clk 0:01:24.8]} 32... Bxf5 {[%clk 0:01:45.2]} 33. Kf4
{[%clk 0:01:22.1]} 33... Rxc3 {[%clk 0:01:46.4]} 34. Re7 {[%clk 0:01:21.5]}
34... Be6 {[%clk 0:01:44.1]} 35. Rxa7 {[%clk 0:01:21.6]} 35... Ra3 {[%clk
0:01:44.4]} 36. Ke5 {[%clk 0:01:19.2]} 36... Rxg3 {[%clk 0:01:42.1]} 37. Rc7+
{[%clk 0:01:19]} 37... Kb4 {[%clk 0:01:42.8]} 38. Be8 {[%clk 0:01:15.8]} 38...
Ra3 {[%clk 0:01:38.3]} 39. Rb7+ {[%clk 0:01:13.9]} 39... Kc3 {[%clk 0:01:37.5]}
40. Ra7 {[%clk 0:01:13]} 40... Kd2 {[%clk 0:01:32.5]} 41. a5 {[%clk 0:01:11.6]}
41... c3 {[%clk 0:01:33]} 42. Bxf7 {[%clk 0:00:41.3]} 42... Bxf7 {[%clk
0:01:32.5]} 43. Rxf7 {[%clk 0:00:41.5]} 43... Rxa5+ {[%clk 0:01:33.3]} 0-1

[Event "*** Titled Tuesday 3|2 Blitz"]
[Site "Chess.com"]
[Date "2016.09.06"]
[Round "2"]
[White "CroatianPower"]
[Black "maciek_92"]
[Result "0-1"]
[WhiteElo "2439"]
[BlackElo "2525"]
[TimeControl "180+2"]
[EndTime "11:21:27 PDT"]
[Termination "maciek_92 won on time"]

1. d4 {[%clk 0:03:01.9]} 1... Nf6 {[%clk 0:03:00.7]} 2. c4 {[%clk 0:03:02.5]}
2... e6 {[%clk 0:03:01.9]} 3. Nc3 {[%clk 0:03:03.4]} 3... Bb4 {[%clk 0:03:02.6]}
4. f3 {[%clk 0:03:04.6]} 4... d5 {[%clk 0:03:01.7]} 5. a3 {[%clk 0:03:04.8]}
5... Bxc3+ {[%clk 0:03:00.3]} 6. bxc3 {[%clk 0:03:06.7]} 6... O-O {[%clk
0:03:01.6]} 7. cxd5 {[%clk 0:03:07.1]} 7... exd5 {[%clk 0:03:02.1]} 8. e3 {[%clk
0:03:08.2]} 8... Bf5 {[%clk 0:03:01.8]} 9. Ne2 {[%clk 0:03:07.4]} 9... c5 {[%clk
0:02:53.5]} 10. g4 {[%clk 0:03:00.1]} 10... Be6 {[%clk 0:02:50.7]} 11. Bg2
{[%clk 0:02:52.9]} 11... Nc6 {[%clk 0:02:39.9]} 12. O-O {[%clk 0:02:52.9]} 12...
Re8 {[%clk 0:02:38]} 13. Ng3 {[%clk 0:02:31.8]} 13... h6 {[%clk 0:02:33]} 14. h3
{[%clk 0:02:08.4]} 14... Rc8 {[%clk 0:02:18.9]} 15. Bb2 {[%clk 0:01:59]} 15...
Na5 {[%clk 0:02:16.3]} 16. e4 {[%clk 0:01:53.7]} 16... cxd4 {[%clk 0:01:58.3]}
17. cxd4 {[%clk 0:01:53.9]} 17... Qb6 {[%clk 0:01:59.7]} 18. Rb1 {[%clk
0:01:42.9]} 18... dxe4 {[%clk 0:01:58.9]} 19. fxe4 {[%clk 0:01:43.5]} 19... Ba2
{[%clk 0:01:59.5]} 20. e5 {[%clk 0:00:50.6]} 20... Rxe5 {[%clk 0:01:46.4]} 21.
Ra1 {[%clk 0:00:49.5]} 21... Bb3 {[%clk 0:01:36.6]} 22. Qf3 {[%clk 0:00:39.4]}
22... Re7 {[%clk 0:01:14.5]} 23. Nf5 {[%clk 0:00:36.7]} 23... Re6 {[%clk
0:01:10.6]} 24. Kh1 {[%clk 0:00:30]} 24... Rc2 {[%clk 0:01:03.9]} 25. Rf2 {[%clk
0:00:20.5]} 25... Bd5 {[%clk 0:01:05.1]} 26. Qg3 {[%clk 0:00:13.2]} 26... Qxb2
{[%clk 0:00:59.8]} 27. Qb8+ {[%clk 0:00:10.2]} 27... Re8 {[%clk 0:00:58.2]} 28.
Ne7+ {[%clk 0:00:03.8]} 28... Kh7 {[%clk 0:00:52.1]} 0-1

[Event "*** Titled Tuesday 3|2 Blitz"]
[Site "Chess.com"]
[Date "2016.09.06"]
[Round "2"]
[White "roldieyi"]
[Black "Anton_Demchenko"]
[Result "0-1"]
[WhiteElo "2215"]
[BlackElo "2610"]
[TimeControl "180+2"]
[EndTime "11:21:59 PDT"]
[Termination "Anton_Demchenko won by resignation"]

1. d4 {[%clk 0:03:00.7]} 1... Nf6 {[%clk 0:03:00.7]} 2. Nf3 {[%clk 0:03:01.6]}
2... g6 {[%clk 0:03:02.6]} 3. c4 {[%clk 0:03:01.8]} 3... Bg7 {[%clk 0:03:04.1]}
4. Nc3 {[%clk 0:03:02.7]} 4... O-O {[%clk 0:03:06]} 5. e4 {[%clk 0:03:03.4]}
5... d6 {[%clk 0:03:07.9]} 6. Be2 {[%clk 0:03:03.8]} 6... Na6 {[%clk 0:03:09.1]}
7. O-O {[%clk 0:03:03.9]} 7... e5 {[%clk 0:03:10.5]} 8. d5 {[%clk 0:03:04.4]}
8... Nc5 {[%clk 0:03:10.9]} 9. Bg5 {[%clk 0:03:05.3]} 9... a5 {[%clk 0:03:12.8]}
10. a3 {[%clk 0:03:05.2]} 10... a4 {[%clk 0:03:12.3]} 11. Nd2 {[%clk 0:03:05.2]}
11... h6 {[%clk 0:03:12.6]} 12. Bxf6 {[%clk 0:03:06.2]} 12... Bxf6 {[%clk
0:03:13.2]} 13. b4 {[%clk 0:03:08.1]} 13... axb3 {[%clk 0:03:14]} 14. Nxb3
{[%clk 0:03:08.8]} 14... Nxb3 {[%clk 0:02:59.7]} 15. Qxb3 {[%clk 0:03:09.1]}
15... Bg5 {[%clk 0:03:01.6]} 16. a4 {[%clk 0:03:01]} 16... b6 {[%clk 0:02:58.5]}
17. Ra2 {[%clk 0:02:56.1]} 17... Ra5 {[%clk 0:02:56.9]} 18. Nb5 {[%clk
0:02:54.9]} 18... Bd7 {[%clk 0:02:56.9]} 19. Qc3 {[%clk 0:02:29.3]} 19... Bf6
{[%clk 0:02:43.6]} 20. Bd3 {[%clk 0:02:18.4]} 20... h5 {[%clk 0:02:44.3]} 21.
Qc2 {[%clk 0:02:17.6]} 21... Bg7 {[%clk 0:02:45.1]} 22. Ra3 {[%clk 0:02:10.9]}
22... h4 {[%clk 0:02:43.8]} 23. h3 {[%clk 0:02:10.7]} 23... Bh6 {[%clk 0:02:44]}
24. Qe2 {[%clk 0:02:05.6]} 24... Bf4 {[%clk 0:02:42.9]} 25. Bc2 {[%clk
0:02:02.7]} 25... Kg7 {[%clk 0:02:37.6]} 26. Rf3 {[%clk 0:01:52.2]} 26... Rh8
{[%clk 0:02:32]} 27. Nd4 {[%clk 0:01:47.7]} 27... Qg5 {[%clk 0:02:28.9]} 28. Nc6
{[%clk 0:01:44]} 28... Raa8 {[%clk 0:02:29.6]} 29. Ra1 {[%clk 0:01:37]} 29...
Rhf8 {[%clk 0:02:09.9]} 30. Raa3 {[%clk 0:01:28.5]} 30... Bd2 {[%clk 0:02:05.6]}
31. Rad3 {[%clk 0:01:22.7]} 31... Bxc6 {[%clk 0:02:04.5]} 32. dxc6 {[%clk
0:01:20]} 32... Bb4 {[%clk 0:02:05.4]} 33. Rd1 {[%clk 0:01:16.5]} 33... Bc5
{[%clk 0:02:06.4]} 34. Kh1 {[%clk 0:01:16.3]} 34... f5 {[%clk 0:02:03.3]} 35.
exf5 {[%clk 0:01:16.1]} 35... gxf5 {[%clk 0:02:04.5]} 36. Rd5 {[%clk 0:00:41.3]}
36... Rf6 {[%clk 0:02:01.9]} 37. g3 {[%clk 0:00:36]} 37... Rh8 {[%clk
0:01:58.2]} 38. gxh4 {[%clk 0:00:34.7]} 38... Qxh4 {[%clk 0:01:56.6]} 39. Rg3+
{[%clk 0:00:35.7]} 39... Kf7 {[%clk 0:01:56.4]} 40. Qf3 {[%clk 0:00:30.1]} 40...
e4 {[%clk 0:01:55.1]} 41. Qe2 {[%clk 0:00:29.5]} 41... Qf4 {[%clk 0:01:54.4]}
42. Rd2 {[%clk 0:00:26.8]} 42... Rg6 {[%clk 0:01:54.9]} 43. Rxg6 {[%clk
0:00:26.3]} 43... Rxh3+ {[%clk 0:01:55.6]} 44. Kg2 {[%clk 0:00:26.2]} 44... Qh2+
{[%clk 0:01:54.3]} 45. Kf1 {[%clk 0:00:27.1]} 45... Kxg6 {[%clk 0:01:55.7]} 46.
Qe1 {[%clk 0:00:25.9]} 46... Qh1+ {[%clk 0:01:55.8]} 47. Ke2 {[%clk 0:00:27.8]}
47... Qf3+ {[%clk 0:01:57.7]} 0-1